fUSD/lending_fUSD_20250110
["ID","MTS","AMOUNT","RATE_DAILY","PERIOD"]
[348399381,1736507440635,-505.92600863,9.996e-05,2]
[348399382,1736507440644,-500.0,9.996e-05,2]
[348399383,1736507440655,-735.97,9.996e-05,2]
[348399384,1736507440664,-591.72,9.996e-05,2]
[348399385,1736507440673,-558.46,9.996e-05,2]
[348399386,1736507440682,-505.82932915,9.996e-05,2]
[348399387,1736507440695,-468.34758759,9.996e-05,2]
[348399388,1736507440704,-731.38,9.996e-05,2]
[348399389,1736507440713,-1446.93,9.996e-05,2]
[348399390,1736507440723,-500.0,9.996e-05,2]
[348399391,1736507440733,-900.78,9.996e-05,2]
[348399392,1736507440742,-500.0,9.996e-05,2]
[348399393,1736507440752,-500.0,9.996e-05,2]
[348399394,1736507440762,-285.02849894,9.996e-05,2]
[348399395,1736507440772,-802.41,9.996e-05,2]
[348399396,1736507440781,-944.45,9.996e-05,2]
[348399397,1736507440790,-2291.86,9.996e-05,2]
[348399398,1736507440799,-500.0,9.996e-05,2]
[348399399,1736507440809,-502.21321474,9.996e-05,2]
[348399400,1736507440818,-676.08,9.996e-05,2]
[348399401,1736507440827,-500.0,9.996e-05,2]
[348399402,1736507440836,-697.96,9.996e-05,2]
[348399403,1736507440845,-516.74,9.996e-05,2]
[348399404,1736507440854,-786.92,9.996e-05,2]
[348399405,1736507440863,-500.0,9.996e-05,2]
[348399406,1736507440872,-500.0,9.996e-05,2]
[348399407,1736507440880,-500.0,9.996e-05,2]
[348399408,1736507440889,-512.73759222,9.996e-05,2]
[348399409,1736507440898,-632.08,9.996e-05,2]
[348399410,1736507440907,-645.38,9.996e-05,2]
[348399411,1736507440916,-613.97,9.996e-05,2]
[348399412,1736507440926,-500.0,9.996e-05,2]
[348399413,1736507440936,-500.0,9.996e-05,2]
[348399414,1736507440945,-500.0,9.996e-05,2]
[348399415,1736507440955,-500.0,9.996e-05,2]
[348399416,1736507440964,-856.92,9.996e-05,2]
[348399417,1736507440974,-613.13,9.996e-05,2]
[348399418,1736507440983,-1125.18,9.996e-05,2]
[348399419,1736507440992,-507.35,9.996e-05,2]
[348399420,1736507441002,-625.85,9.996e-05,2]
[348399421,1736507441011,-2015.44,9.996e-05,2]
[348399422,1736507441021,-500.0,9.996e-05,2]
[348399423,1736507441032,-500.0,9.996e-05,2]
[348399424,1736507441042,-500.0,9.996e-05,2]
[348399425,1736507441052,-571.24,9.996e-05,2]
[348399426,1736507441061,-500.0,9.996e-05,2]
[348399427,1736507441071,-725.99,9.996e-05,2]
[348399428,1736507441081,-585.8,9.996e-05,2]
[348399429,1736507441090,-1638.91,9.996e-05,2]
[348399430,1736507441099,-500.0,9.996e-05,2]
[348399431,1736507441108,-500.0,9.996e-05,2]
[348399432,1736507441118,-500.0,9.996e-05,2]
[348399433,1736507441128,-500.0,9.996e-05,2]
[348399434,1736507441138,-500.0,9.996e-05,2]
[348399435,1736507441149,-500.0,9.996e-05,2]
[348399436,1736507441158,-500.0,9.996e-05,2]
[348399437,1736507441169,-500.0,9.996e-05,2]
[348399438,1736507441178,-500.0,9.996e-05,2]
[348399439,1736507441188,-503.7,9.996e-05,2]
[348399440,1736507441197,-650.07,9.996e-05,2]
[348399441,1736507441206,-442.76300246,9.996e-05,2]
[348399442,1736507441220,-2283.07,9.996e-05,2]
[348399443,1736507441229,-507.22222886,9.996e-05,2]
[348399444,1736507441239,-500.0,9.996e-05,2]
[348399445,1736507441248,-500.0,9.996e-05,2]
[348399446,1736507441257,-208.08002693,9.996e-05,2]
[348399447,1736507441267,-500.0,9.996e-05,2]
[348399448,1736507441276,-2513.96,9.996e-05,2]
[348399449,1736507441285,-500.91611661,9.996e-05,2]
[348399450,1736507441294,-1214.98,9.996e-05,2]
[348399451,1736507441303,-500.0,9.996e-05,2]
[348399452,1736507441314,-500.0,9.996e-05,2]
[348399453,1736507441323,-500.0,9.996e-05,2]
[348399454,1736507441332,-500.0,9.996e-05,2]
[348399455,1736507441341,-500.0,9.996e-05,2]
[348399456,1736507441350,-500.0,9.996e-05,2]
[348399457,1736507441360,-500.0,9.997e-05,2]
[348399458,1736507441373,-500.0,9.997e-05,2]
[348399459,1736507441383,-500.0,9.997e-05,2]
[348399460,1736507441394,-501.00592784,9.997e-05,2]
[348399461,1736507441403,-501.81547133,9.997e-05,2]
[348399462,1736507441414,-500.98535606,9.997e-05,2]
[348399463,1736507441424,-500.0,9.997e-05,2]
[348399464,1736507441435,-500.0,9.997e-05,2]
[348399465,1736507441444,-500.0,9.997e-05,2]
[348399466,1736507441454,-500.0,9.997e-05,2]
[348399467,1736507441463,-500.0,9.997e-05,2]
[348399468,1736507441474,-500.0,9.997e-05,2]
[348399469,1736507441483,-500.0,9.997e-05,2]
[348399470,1736507441493,-500.0,9.997e-05,2]
[348399471,1736507441503,-500.0,9.997e-05,2]
[348399472,1736507441512,-500.0,9.997e-05,2]
[348399473,1736507441522,-500.0,9.997e-05,2]
[348399474,1736507441531,-500.0,9.997e-05,2]
[348399475,1736507441540,-500.0,9.997e-05,2]
[348399476,1736507441550,-500.0,9.997e-05,2]
[348399477,1736507441559,-500.0,9.997e-05,2]
[348399478,1736507441568,-500.0,9.997e-05,2]
[348399479,1736507441577,-500.0,9.997e-05,2]
[348399480,1736507441586,-303.5065665,9.997e-05,2]
[348399481,1736507441595,-552.23,9.997e-05,2]
[348399482,1736507441604,-497.8,9.997e-05,2]
[348399483,1736507441613,-221.40352652,9.997e-05,2]
[348399484,1736507441623,-153.02640469,9.997e-05,2]
[348399485,1736507441632,-500.0,9.997e-05,2]
[348399486,1736507441642,-500.0,9.997e-05,2]
[348399487,1736507441652,-500.0,9.997e-05,2]
[348399488,1736507441661,-510.78929281,9.997e-05,2]
[348399489,1736507441671,-500.0,9.997e-05,2]
[348399490,1736507441681,-500.0,9.997e-05,2]
[348399491,1736507441690,-500.0,9.997e-05,2]
[348399492,1736507441699,-500.0,9.997e-05,2]
[348399493,1736507441709,-500.0,9.997e-05,2]
[348399494,1736507441719,-500.0,9.997e-05,2]
[348399495,1736507441728,-509.59231236,9.997e-05,2]
[348399496,1736507441929,-500.0,9.997e-05,2]
[348399497,1736507441968,-500.0,9.997e-05,2]
[348399498,1736507441977,-500.0,9.997e-05,2]
[348399499,1736507441987,-500.0,9.997e-05,2]
[348399500,1736507441996,-500.0,9.997e-05,2]
[348399501,1736507442006,-502.66734371,9.997e-05,2]
[348399502,1736507442016,-500.0,9.997e-05,2]
[348399503,1736507442025,-500.0,9.997e-05,2]
[348399504,1736507442035,-552.32,9.997e-05,2]
[348399505,1736507442046,-500.0,9.997e-05,2]
[348399506,1736507442056,-277.72737736,9.997e-05,2]
[348399507,1736507442066,-500.0,9.997e-05,2]
[348399508,1736507442076,-501.39919363,9.997e-05,2]
[348399509,1736507442087,-505.97139791,9.997e-05,2]
[348399510,1736507442096,-270.32454244,9.997e-05,2]
[348399511,1736507442109,-500.0,9.997e-05,2]
[348399512,1736507442118,-500.0,9.997e-05,2]
[348399513,1736507442128,-500.0,9.997e-05,2]
[348399514,1736507442137,-500.0,9.997e-05,2]
[348399515,1736507442147,-500.0,9.997e-05,2]
[348399516,1736507442156,-213.43305888,9.997e-05,2]
[348399517,1736507442166,-500.0,9.997e-05,2]
[348399518,1736507442175,-500.0,9.997e-05,2]
[348399519,1736507442185,-512.9852678,9.997e-05,2]
[348399520,1736507442194,-500.0,9.997e-05,2]
[348399521,1736507442203,-500.0,9.997e-05,2]
[348399522,1736507442213,-500.0,9.997e-05,2]
[348399523,1736507442223,-500.0,9.997e-05,2]
[348399524,1736507442233,-1434.16,9.997e-05,2]
[348399525,1736507442243,-500.0,9.997e-05,2]
[348399526,1736507442253,-500.90416506,9.997e-05,2]
[348399527,1736507442263,-541.93,9.997e-05,2]
[348399528,1736507442274,-506.16362332,9.997e-05,2]
[348399529,1736507442283,-500.0,9.997e-05,2]
[348399530,1736507442294,-500.0,9.997e-05,2]
[348399531,1736507442305,-500.0,9.997e-05,2]
[348399532,1736507442314,-506.06226391,9.997e-05,2]
[348399533,1736507442324,-500.0,9.997e-05,2]
[348399534,1736507442334,-500.0,9.997e-05,2]
[348399535,1736507442343,-500.0,9.997e-05,2]
[348399536,1736507442357,-500.0,9.997e-05,2]
[348399537,1736507442367,-508.81106253,9.997e-05,2]
[348399538,1736507442380,-508.12876591,9.997e-05,2]
[348399539,1736507442389,-776.94,9.997e-05,2]
[348399540,1736507442399,-504.3808806,9.997e-05,2]
[348399541,1736507442408,-500.0,9.997e-05,2]
[348399542,1736507442418,-660.67,9.997e-05,2]
[348399543,1736507442427,-500.0,9.997e-05,2]
[348399544,1736507442437,-500.0,9.997e-05,2]
[348399545,1736507442449,-500.0,9.997e-05,2]
[348399546,1736507442459,-500.0,9.997e-05,2]
[348399547,1736507442468,-500.0,9.997e-05,2]
[348399548,1736507442478,-1010.03,9.997e-05,2]
[348399549,1736507442488,-500.0,9.997e-05,2]
[348399550,1736507442498,-500.0,9.997e-05,2]
[348399551,1736507442508,-500.0,9.998e-05,2]
[348399552,1736507442518,-4470.13,9.998e-05,2]
[348399553,1736507442528,-981.94,9.998e-05,2]
[348399554,1736507442539,-823.89,9.998e-05,2]
[348399555,1736507442548,-705.21,9.998e-05,2]
[348399556,1736507442558,-748.16,9.998e-05,2]
[348399557,1736507442568,-2847.26,9.998e-05,2]
[348399558,1736507442577,-500.0,9.998e-05,2]
[348399559,1736507442587,-1328.73,9.998e-05,2]
[348399560,1736507442597,-810.65,9.998e-05,2]
[348399561,1736507442606,-1666.06,9.998e-05,2]
[348399562,1736507442615,-851.41,9.998e-05,2]
[348399563,1736507442625,-705.9,9.998e-05,2]
[348399564,1736507442634,-959.09,9.998e-05,2]
[348399565,1736507442643,-891.48,9.998e-05,2]
[348399566,1736507442653,-1251.94,9.998e-05,2]
[348399567,1736507442662,-901.31,9.998e-05,2]
[348399568,1736507442671,-926.53,9.998e-05,2]
[348399569,1736507442681,-500.0,9.998e-05,2]
[348399570,1736507442690,-812.02,9.998e-05,2]
[348399571,1736507442700,-713.41,9.998e-05,2]
[348399572,1736507442710,-500.0,9.998e-05,2]
[348399573,1736507442719,-1947.28,9.998e-05,2]
[348399574,1736507442729,-2000.0,9.999e-05,2]
[348399575,1736507442739,-200.0,9.999e-05,2]
[348399576,1736507442749,-268.28155592,9.999e-05,2]
[348399577,1736507442759,-200.0,9.999e-05,2]
[348399578,1736507442768,-500.0,9.999e-05,2]
[348399579,1736507442777,-812.42,9.999e-05,2]
[348399580,1736507442787,-500.0,9.999e-05,2]
[348399581,1736507442797,-4470.13,9.999e-05,2]
[348399582,1736507442807,-4470.13,9.999e-05,2]
[348399583,1736507442816,-4470.13,9.999e-05,2]
[348399584,1736507442826,-4470.13,9.999e-05,2]
[348399585,1736507442837,-4470.13,9.999e-05,2]
[348399586,1736507442849,-4470.13,9.999e-05,2]
[348399587,1736507442858,-4470.13,9.999e-05,2]
[348399588,1736507442867,-4470.13,9.999e-05,2]
[348399589,1736507442876,-555.38,9.999e-05,2]
[348399590,1736507442887,-4470.13,9.999e-05,2]
[348399591,1736507442896,-4470.13,9.999e-05,2]
[348399592,1736507442906,-4470.13,9.999e-05,2]
[348399593,1736507442916,-502.12273017,9.999e-05,2]
[348399594,1736507442925,-676.13,9.999e-05,2]
[348399595,1736507442934,-2000.0,9.999e-05,2]
[348399596,1736507442944,-200.0,9.999e-05,2]
[348399597,1736507442953,-1076.04,9.999e-05,2]
[348399598,1736507442963,-1056.59,9.999e-05,2]
[348399599,1736507442972,-1729.33,9.999e-05,2]
[348399600,1736507442982,-4361.79,9.999e-05,2]
[348399601,1736507442991,-755.75,9.999e-05,2]
[348399602,1736507443001,-560.81,9.999e-05,2]
[348399603,1736507443010,-1515.95,9.999e-05,2]
[348399604,1736507443021,-406.72548586,9.999e-05,2]
[348399605,1736507443031,-200.0,9.999e-05,2]
[348399606,1736507443041,-500.0,9.999e-05,2]
[348399607,1736507443051,-580.31,9.999e-05,2]
[348399608,1736507443061,-500.0,9.999e-05,2]
[348399609,1736507443071,-205.59955707,9.999e-05,2]
[348399610,1736507443081,-35640.66969731,9.999e-05,2]
[348399611,1736507443090,-2442736.05910819,0.0001,2]
[348399612,1736507443100,-30373.22841424,0.0001,2]
[348399613,1736507443109,-123552.92636642,0.0001,2]
[348399614,1736507443119,-1700.0,0.0001,3]
[348399615,1736507443128,-280.50643915,0.0001,2]
[348399616,1736507443138,-940.12457953,0.0001,2]
[348399617,1736507443147,-225969.08665899,0.0001,2]
[348399618,1736507443472,-2179.78356871,0.0001,2]
[348399619,1736507443764,-510.72,9.995e-05,2]
[348399620,1736507443774,-343.507843,0.0001,2]
[348399621,1736507443792,-926.1366638,0.0001,2]
[348399622,1736507443825,-254.62706553,0.0001,2]
[348399627,1736507444590,-888.514,9.896e-05,2]
[348399628,1736507444600,-500.0,9.996e-05,2]
[348399629,1736507444611,-161.78824,9.996e-05,2]
[348399630,1736507444620,-116074.88862556,0.0001,2]
[348399631,1736507444632,-2000.0,0.0001,2]
[348399632,1736507444658,-35005.25890229,0.0001,2]
[348399633,1736507444806,-8346.91047772,0.0001,2]
[348399647,1736507445941,-982.1194004,0.0001,2]
[348399648,1736507446013,-9481.0808,0.0001,2]
[348399649,1736507446211,-335.86016,0.0001,2]
[348399657,1736507602323,181.33,7.357e-05,2]
[348399658,1736507817940,875.43,8.219e-05,2]
[348399732,1736508632146,-184.80969112,9e-05,2]
[348399733,1736508632156,-186.45787987,9e-05,2]
[348399734,1736508632167,-150.0,9e-05,2]
[348399735,1736508632176,-250.0,9.076e-05,2]
[348399736,1736508632186,-324.15,9.145e-05,2]
[348399737,1736508632196,-342.5899518,9.168e-05,2]
[348399773,1736508638522,-539.6500482,9.168e-05,2]
[348399774,1736508638532,-154.44,9.181e-05,2]
[348399775,1736508638541,-151.95,9.186e-05,2]
[348399776,1736508638551,-1000.0,9.2e-05,2]
[348399777,1736508638559,-214.332809,9.6e-05,2]
[348399778,1736508638569,-500.0,9.616e-05,2]
[348399779,1736508638578,-150.0,9.879e-05,2]
[348399780,1736508638587,-101348.13942147,9.88e-05,2]
[348399781,1736508638596,-30000.0,9.888e-05,2]
[348399782,1736508638605,-2308.33686549,9.934e-05,2]
[348399783,1736508638615,-500.0,9.945e-05,2]
[348399784,1736508638624,-2308.33686549,9.969e-05,2]
[348399785,1736508638633,-8275.0,9.973e-05,2]
[348399786,1736508638642,-500.0,9.973e-05,2]
[348399787,1736508638652,-11617.0618383,9.988e-05,2]
[348399788,1736508638661,-516.50919162,9.989e-05,2]
[348399789,1736508638669,-516.50919162,9.989e-05,2]
[348399790,1736508638679,-516.50919162,9.99e-05,2]
[348399791,1736508638689,-8113.2954857,9.992e-05,2]
[348399792,1736508638698,-516.50919162,9.993e-05,2]
[348399793,1736508638707,-7818.266559,9.993e-05,2]
[348399794,1736508638716,-516.50919162,9.993e-05,2]
[348399795,1736508638726,-516.50919162,9.995e-05,2]
[348399796,1736508638735,-500.0,9.995e-05,2]
[348399797,1736508638744,-500.0,9.995e-05,2]
[348399798,1736508638753,-500.0,9.995e-05,2]
[348399799,1736508638762,-500.0,9.995e-05,2]
[348399800,1736508638771,-500.0,9.995e-05,2]
[348399801,1736508638781,-570.0,9.995e-05,2]
[348399802,1736508638790,-500.0,9.995e-05,2]
[348399803,1736508638800,-475.54892788,9.995e-05,2]
[348399804,1736508638811,-500.0,9.995e-05,2]
[348399805,1736508638821,-500.0,9.995e-05,2]
[348399806,1736508638830,-467.18105834,9.995e-05,2]
[348399807,1736508638841,-500.0,9.995e-05,2]
[348399808,1736508638851,-500.0,9.995e-05,2]
[348399809,1736508638859,-500.0,9.995e-05,2]
[348399810,1736508638868,-500.0,9.995e-05,2]
[348399811,1736508638878,-500.0,9.995e-05,2]
[348399812,1736508638887,-500.0,9.995e-05,2]
[348399813,1736508638897,-500.0,9.995e-05,2]
[348399814,1736508638906,-500.0,9.995e-05,2]
[348399815,1736508638914,-500.0,9.995e-05,2]
[348399816,1736508638923,-250.18527059,9.995e-05,2]
[348399817,1736508638933,-500.0,9.995e-05,2]
[348399818,1736508638942,-500.0,9.995e-05,2]
[348399819,1736508638951,-1875.9,9.995e-05,2]
[348399820,1736508638960,-500.0,9.995e-05,2]
[348399821,1736508638970,-500.0,9.995e-05,2]
[348399822,1736508638979,-500.0,9.995e-05,2]
[348399823,1736508638988,-502.58,9.995e-05,2]
[348399824,1736508638997,-993.49,9.995e-05,2]
[348399825,1736508639006,-500.0,9.995e-05,2]
[348399826,1736508639016,-500.0,9.995e-05,2]
[348399827,1736508639025,-500.0,9.995e-05,2]
[348399828,1736508639034,-2403.65,9.995e-05,2]
[348399829,1736508639043,-500.0,9.995e-05,2]
[348399830,1736508639052,-500.0,9.995e-05,2]
[348399831,1736508639061,-500.0,9.995e-05,2]
[348399832,1736508639071,-500.0,9.995e-05,2]
[348399833,1736508639079,-632.84,9.995e-05,2]
[348399834,1736508639088,-500.0,9.995e-05,2]
[348399835,1736508639097,-500.0,9.995e-05,2]
[348399836,1736508639106,-632.54,9.995e-05,2]
[348399837,1736508639115,-594.03,9.995e-05,2]
[348399838,1736508639124,-957.92,9.995e-05,2]
[348399839,1736508639133,-500.0,9.995e-05,2]
[348399840,1736508639142,-500.0,9.995e-05,2]
[348399841,1736508639151,-500.0,9.995e-05,2]
[348399842,1736508639160,-500.0,9.995e-05,2]
[348399843,1736508639169,-2141.14,9.995e-05,2]
[348399844,1736508639178,-500.0,9.995e-05,2]
[348399845,1736508639187,-500.0,9.995e-05,2]
[348399846,1736508639196,-500.0,9.995e-05,2]
[348399847,1736508639205,-500.0,9.995e-05,2]
[348399848,1736508639214,-500.0,9.995e-05,2]
[348399849,1736508639224,-233.78154347,9.995e-05,2]
[348399850,1736508639232,-585.49,9.995e-05,2]
[348399851,1736508639242,-500.0,9.995e-05,2]
[348399852,1736508639488,-500.0,9.995e-05,2]
[348399853,1736508639498,-500.0,9.995e-05,2]
[348399854,1736508639508,-545.18,9.995e-05,2]
[348399855,1736508639518,-588.69,9.995e-05,2]
[348399856,1736508639527,-588.89,9.995e-05,2]
[348399857,1736508639536,-500.0,9.995e-05,2]
[348399858,1736508639545,-500.0,9.995e-05,2]
[348399859,1736508639555,-556.03,9.995e-05,2]
[348399860,1736508639565,-500.0,9.995e-05,2]
[348399861,1736508639574,-500.0,9.995e-05,2]
[348399862,1736508639584,-500.0,9.995e-05,2]
[348399863,1736508639593,-791.06,9.995e-05,2]
[348399864,1736508639602,-500.0,9.995e-05,2]
[348399865,1736508639612,-657.39,9.995e-05,2]
[348399866,1736508639621,-500.0,9.995e-05,2]
[348399867,1736508639631,-647.36,9.995e-05,2]
[348399868,1736508639640,-500.0,9.995e-05,2]
[348399869,1736508639650,-627.42,9.995e-05,2]
[348399870,1736508639659,-500.0,9.995e-05,2]
[348399871,1736508639668,-721.29,9.995e-05,2]
[348399872,1736508639678,-500.0,9.995e-05,2]
[348399873,1736508639687,-1000.03,9.995e-05,2]
[348399874,1736508639696,-500.0,9.995e-05,2]
[348399875,1736508639705,-500.0,9.995e-05,2]
[348399876,1736508639715,-554.61,9.995e-05,2]
[348399877,1736508639724,-500.0,9.995e-05,2]
[348399878,1736508639733,-500.0,9.995e-05,2]
[348399879,1736508639742,-660.49,9.995e-05,2]
[348399880,1736508639751,-616.61849769,9.996e-05,2]
[348399881,1736508639761,-500.0,9.996e-05,2]
[348399882,1736508639770,-500.0,9.996e-05,2]
[348399883,1736508639779,-500.0,9.996e-05,2]
[348399884,1736508639788,-500.0,9.996e-05,2]
[348399885,1736508639797,-500.0,9.996e-05,2]
[348399886,1736508639810,-500.0,9.996e-05,2]
[348399887,1736508639819,-553.96,9.996e-05,2]
[348399888,1736508639828,-643.81,9.996e-05,2]
[348399889,1736508639837,-500.0,9.996e-05,2]
[348399890,1736508639849,-500.0,9.996e-05,2]
[348399891,1736508639858,-866.02,9.996e-05,2]
[348399892,1736508639867,-500.0,9.996e-05,2]
[348399893,1736508639877,-635.86,9.996e-05,2]
[348399894,1736508639886,-1530.67,9.996e-05,2]
[348399895,1736508639895,-500.0,9.996e-05,2]
[348399896,1736508639903,-717.8,9.996e-05,2]
[348399897,1736508639912,-859.03,9.996e-05,2]
[348399898,1736508639922,-1171.72,9.996e-05,2]
[348399899,1736508639931,-3057.34,9.996e-05,2]
[348399900,1736508639940,-1096.43,9.996e-05,2]
[348399901,1736508639949,-1970.2,9.996e-05,2]
[348399903,1736508639958,-1409.73,9.996e-05,2]
[348399904,1736508639967,-7708.17,9.996e-05,2]
[348399905,1736508639976,-4552.05,9.996e-05,2]
[348399906,1736508639985,-1010.24,9.996e-05,2]
[348399907,1736508639994,-1799.35,9.996e-05,2]
[348399908,1736508640002,-622.66,9.997e-05,2]
[348399909,1736508640011,-500.0,9.997e-05,2]
[348399910,1736508640020,-716.89,9.997e-05,2]
[348399911,1736508640029,-555.25,9.997e-05,2]
[348399912,1736508640038,-528.52,9.997e-05,2]
[348399913,1736508640047,-642.16,9.997e-05,2]
[348399914,1736508640056,-500.0,9.997e-05,2]
[348399915,1736508640065,-500.0,9.997e-05,2]
[348399916,1736508640074,-500.0,9.997e-05,2]
[348399917,1736508640083,-500.0,9.997e-05,2]
[348399918,1736508640092,-500.0,9.997e-05,2]
[348399919,1736508640102,-624.94,9.997e-05,2]
[348399920,1736508640111,-500.0,9.997e-05,2]
[348399921,1736508640120,-193.7229987,9.997e-05,2]
[348399922,1736508640129,-500.0,9.997e-05,2]
[348399923,1736508640138,-500.0,9.997e-05,2]
[348399924,1736508640147,-500.0,9.997e-05,2]
[348399925,1736508640157,-598.31899356,9.997e-05,2]
[348399926,1736508640165,-609.18,9.997e-05,2]
[348399927,1736508640175,-489.48497756,9.997e-05,2]
[348399928,1736508640184,-505.80420499,9.997e-05,2]
[348399929,1736508640193,-500.0,9.997e-05,2]
[348399930,1736508640202,-205.11524445,9.997e-05,2]
[348399931,1736508640211,-500.0,9.997e-05,2]
[348399932,1736508640220,-164.73891241,9.997e-05,2]
[348399933,1736508640229,-500.0,9.997e-05,2]
[348399934,1736508640238,-500.0,9.997e-05,2]
[348399935,1736508640248,-500.0,9.997e-05,2]
[348399936,1736508640257,-630.69,9.997e-05,2]
[348399937,1736508640266,-500.0,9.997e-05,2]
[348399938,1736508640275,-500.0,9.997e-05,2]
[348399939,1736508640284,-510.84510393,9.997e-05,2]
[348399940,1736508640293,-500.0,9.997e-05,2]
[348399941,1736508640303,-653.38,9.997e-05,2]
[348399942,1736508640312,-500.0,9.997e-05,2]
[348399943,1736508640321,-695.86,9.997e-05,2]
[348399944,1736508640330,-500.0,9.997e-05,2]
[348399945,1736508640339,-500.0,9.997e-05,2]
[348399946,1736508640348,-500.0,9.997e-05,2]
[348399947,1736508640358,-539.98,9.997e-05,2]
[348399948,1736508640398,-500.0,9.997e-05,2]
[348399949,1736508640407,-514.65435401,9.997e-05,2]
[348399950,1736508640416,-500.0,9.997e-05,2]
[348399951,1736508640425,-583.96927787,9.997e-05,2]
[348399952,1736508640434,-665.24,9.997e-05,2]
[348399953,1736508640443,-681.6,9.997e-05,2]
[348399954,1736508640452,-513.61363793,9.997e-05,2]
[348399955,1736508640462,-520.57,9.997e-05,2]
[348399956,1736508640473,-500.0,9.997e-05,2]
[348399957,1736508640482,-727.28,9.997e-05,2]
[348399958,1736508640491,-500.0,9.997e-05,2]
[348399959,1736508640500,-629.11,9.997e-05,2]
[348399960,1736508640509,-500.0,9.997e-05,2]
[348399961,1736508640518,-547.05,9.997e-05,2]
[348399962,1736508640527,-636.21,9.997e-05,2]
[348399963,1736508640536,-526.51,9.997e-05,2]
[348399964,1736508640545,-688.41,9.997e-05,2]
[348399965,1736508640554,-662.34,9.997e-05,2]
[348399966,1736508640563,-624.47,9.997e-05,2]
[348399967,1736508640572,-500.0,9.997e-05,2]
[348399968,1736508640581,-500.0,9.997e-05,2]
[348399970,1736508640590,-504.97943525,9.997e-05,2]
[348399972,1736508640600,-574.53,9.997e-05,2]
[348399974,1736508640608,-581.59,9.997e-05,2]
[348399976,1736508640618,-691.12,9.997e-05,2]
[348399977,1736508640627,-611.47,9.997e-05,2]
[348399978,1736508640637,-506.37325306,9.997e-05,2]
[348399979,1736508640647,-2187.94,9.997e-05,2]
[348399980,1736508640658,-504.63739607,9.997e-05,2]
[348399981,1736508640669,-245.1410807,9.997e-05,2]
[348399982,1736508640680,-647.66,9.997e-05,2]
[348399983,1736508640689,-500.0,9.997e-05,2]
[348399984,1736508640698,-825.91,9.997e-05,2]
[348399985,1736508640710,-789.74,9.997e-05,2]
[348399986,1736508640722,-667.31,9.997e-05,2]
[348399987,1736508640731,-1705.86,9.997e-05,2]
[348399988,1736508640739,-611.5,9.997e-05,2]
[348399989,1736508640748,-3120.35,9.997e-05,2]
[348399990,1736508640757,-798.56,9.997e-05,2]
[348399991,1736508640765,-510.27,9.997e-05,2]
[348399992,1736508640775,-627.96,9.997e-05,2]
[348399993,1736508640784,-1138.55,9.997e-05,2]
[348399994,1736508640793,-661.03,9.997e-05,2]
[348399995,1736508640807,-2609.71,9.997e-05,2]
[348399996,1736508640818,-500.0,9.997e-05,2]
[348399997,1736508640829,-5238.94,9.997e-05,2]
[348399998,1736508640841,-755.75,9.997e-05,2]
[348399999,1736508640850,-500.0,9.997e-05,2]
[348400000,1736508640860,-752.56,9.997e-05,2]
[348400001,1736508640870,-500.0,9.997e-05,2]
[348400002,1736508640881,-633.12,9.997e-05,2]
[348400003,1736508640891,-613.84,9.997e-05,2]
[348400004,1736508640901,-2534.06,9.997e-05,2]
[348400005,1736508640912,-500.0,9.997e-05,2]
[348400006,1736508640923,-884.08,9.997e-05,2]
[348400007,1736508640933,-618.81,9.997e-05,2]
[348400008,1736508640943,-587.9,9.997e-05,2]
[348400009,1736508640952,-914.26,9.997e-05,2]
[348400010,1736508640962,-500.0,9.997e-05,2]
[348400011,1736508640974,-1146.15,9.997e-05,2]
[348400012,1736508640984,-789.81,9.997e-05,2]
[348400013,1736508640993,-987.86,9.997e-05,2]
[348400014,1736508641003,-710.55,9.997e-05,2]
[348400015,1736508641013,-690.24,9.997e-05,2]
[348400016,1736508641022,-1428.55,9.997e-05,2]
[348400017,1736508641032,-501.06,9.997e-05,2]